bitfinex-derivatives/quotes_ETHF0:USTF0_20250607
["timestamp","ask_amount","ask_price","bid_price","bid_amount"]
[1749255346226,1.274,2465.1,2464.8,0.81077]
[1749255346427,0.81074,2465.0,2464.9,0.81076]
[1749255346724,0.81074,2465.0,2464.8,0.81077]
[1749255346926,1.9328,2464.9,2464.8,0.81077]
[1749255347319,6.9328,2464.9,2464.8,0.81077]
[1749255347822,6.9328,2464.9,2464.7,5.29208655]
[1749255347823,10.1406,2464.9,2464.7,5.29208655]
[1749255348024,0.81079,2464.8,2464.7,5.29208655]
[1749255348325,2.10649,2464.8,2464.7,5.29208655]
[1749255348624,7.10649,2464.8,2464.7,6.10290655]
[1749255349127,8.32276,2464.8,2464.0,3.2078]
[1749255349325,3.2078,2464.4,2464.0,9.30583]
[1749255349529,2.6367,2464.3,2464.0,8.4948]
[1749255349723,3.44768,2464.3,2464.1,0.811]
[1749255350222,3.44766,2464.3,2464.2,0.81099]
[1749255350628,8.44766,2464.3,2464.2,0.81099]
[1749255351425,8.44766,2464.3,2464.1,0.811]
[1749255351624,0.81099,2464.2,2464.1,0.811]
[1749255351825,2.11079,2464.2,2464.0,9.31191655]
[1749255352027,0.81102,2464.1,2464.0,9.31191655]
[1749255352227,1.2998,2464.1,2464.0,9.31191655]
[1749255354023,2.15394655,2464.3,2464.2,0.81099]
[1749255354224,2.66168655,2464.3,2464.2,0.81099]
[1749255354427,0.00608655,2464.3,2464.2,0.81099]
[1749255354828,0.00608655,2464.3,2463.6,0.16059001]
[1749255354829,10.19408655,2464.3,2463.6,0.16059001]
[1749255355130,4.01895,2463.7,2463.6,0.16059001]
[1749255355627,8.2078,2463.7,2463.6,0.16059001]
[1749255355828,4.01895,2463.7,2463.6,0.16059001]
[1749255356224,3.2078,2464.0,2463.9,0.81109]
[1749255356626,0.81112,2463.8,2463.7,0.6364]
[1749255356826,0.81112,2463.8,2463.7,0.81115]
[1749255357127,0.81112,2463.8,2463.6,0.97175001]
[1749255358032,1.3523,2463.9,2463.6,0.16059001]
[1749255358224,4.01895,2463.7,2463.6,0.16059001]
[1749255358424,3.2078,2463.7,2463.6,0.16059001]
[1749255358627,0.81113,2463.8,2463.6,0.16059001]
[1749255358826,4.01887,2464.0,2463.6,0.16059001]
[1749255359025,3.2078,2464.0,2463.6,0.16059001]
[1749255359228,3.2078,2464.0,2463.9,0.81109]
[1749255359428,3.2078,2464.0,2463.9,5.99909]
[1749255359931,0.00608655,2464.3,2464.0,0.81104]
[1749255360228,0.00608655,2464.3,2464.0,0.6377]
[1749255360431,0.00608655,2464.3,2464.1,0.811]
[1749255360926,5.23528,2464.2,2463.5,5.188]
[1749255361123,0.81115,2463.7,2463.5,5.188]
[1749255361326,0.81115,2463.7,2463.3,0.6377]
[1749255361527,5.81115,2463.7,2463.1,5.188]
[1749255361727,5.81115,2463.7,2463.1,5.99934]
[1749255362031,5.81115,2463.7,2463.1,5.99933]
[1749255362234,5.81115,2463.7,2463.1,5.99934]
[1749255362434,5.81115,2463.7,2463.1,5.188]
[1749255362828,5.81115,2463.7,2462.3,3.2078]
[1749255362829,2.02821,2463.4,2462.3,3.2078]
[1749255363136,0.00608655,2463.1,2463.0,0.81138]
[1749255363732,0.00608655,2463.1,2462.8,0.6787]
[1749255363935,0.00608655,2463.1,2462.5,0.6441]
[1749255363936,0.81151,2462.7,2462.5,0.6441]
[1749255364130,0.81147,2462.8,2462.4,0.08122157]
[1749255364335,4.01923,2462.9,2462.6,0.81148]
[1749255364634,1.4853,2463.0,2462.7,0.81148]
[1749255365136,3.2078,2462.9,2462.5,0.6787]
[1749255365334,0.81149,2462.7,2462.5,0.6787]
[1749255365534,0.81149,2462.7,2462.5,1.49023]
[1749255365835,4.01924,2462.9,2462.6,0.81151]
[1749255366038,3.2078,2462.9,2462.5,1.49023]
[1749255366329,0.8115,2462.7,2462.4,0.81156]
[1749255366533,0.8115,2462.7,2461.3,19.568]
[1749255366534,3.2078,2462.5,2461.1,0.32059795]
[1749255366727,2.03013,2461.0,2459.2,3.2078]
[1749255366928,0.00608655,2460.3,2459.8,3.2078]
[1749255367129,0.00608655,2460.3,2460.2,0.81231]
[1749255367328,3.2078,2461.1,2460.7,0.81212]
[1749255367531,3.2078,2461.4,2460.7,3.2078]
[1749255367730,3.2078,2461.4,2461.2,0.32669804]
[1749255367929,3.2078,2461.7,2461.3,0.32669804]
[1749255368135,1.2857,2462.4,2461.5,0.32669804]
[1749255368340,3.2078,2461.6,2459.7,7.509]
[1749255368634,3.2078,2460.6,2460.5,0.81221]
[1749255368838,3.2078,2460.9,2460.5,7.509]
[1749255369037,3.2078,2460.9,2460.6,2.90067]
[1749255369232,3.2078,2460.9,2460.7,2.21963]
[1749255369439,3.2078,2460.9,2460.8,1.4075]
[1749255369735,3.2078,2460.9,2460.3,24.546]
[1749255370037,3.2078,2460.6,2460.4,7.509]
[1749255370230,3.2078,2460.6,2460.3,24.546]
[1749255370431,0.81221,2460.5,2460.4,7.511]
[1749255370631,3.2078,2460.3,2459.1,0.16059001]
[1749255370837,3.2078,2459.6,2459.2,2.0885]
[1749255371032,3.21389905,2459.6,2459.3,1.3499]
[1749255371231,3.21389905,2459.6,2459.3,7.511]
[1749255371429,3.21389905,2459.6,2459.4,0.01422636]
[1749255371838,3.21389905,2459.6,2459.5,7.511]
[1749255372033,3.21389905,2459.6,2459.5,9.67344]
[1749255372232,3.21389905,2459.6,2459.4,0.01422636]
[1749255372233,8.21389905,2459.6,2459.4,0.01422636]
[1749255372429,4.02642905,2459.6,2459.5,0.01422636]
[1749255372730,4.50428433,2459.6,2459.5,0.01422636]
[1749255372936,3.21389905,2459.6,2459.5,0.01422636]
[1749255373334,3.21389905,2459.6,2459.5,0.82676636]
[1749255373535,3.21389905,2459.6,2459.5,0.01422636]
[1749255373730,3.21389905,2459.6,2459.5,2.17666636]
[1749255373936,0.00609905,2459.6,2459.5,7.17666636]
[1749255374136,3.2078,2459.9,2459.8,0.81244]
[1749255374634,3.2078,2459.9,2459.8,0.82666636]
[1749255374839,3.2078,2460.2,2460.1,0.81232]
[1749255375036,0.6627,2461.2,2459.9,3.21389905]
[1749255375037,0.00609905,2460.4,2459.9,3.21389905]
[1749255375230,3.2078,2460.2,2460.0,8.32637]
[1749255375435,3.2078,2460.2,2460.1,2.16884]
[1749255375636,3.2078,2460.2,2460.1,2.18306636]
[1749255376339,0.39039905,2460.4,2460.3,0.81227]
[1749255376532,0.39039905,2460.4,2460.3,0.01422636]
[1749255376741,0.39039905,2460.4,2460.3,0.82649636]
[1749255377040,0.95979905,2460.4,2460.3,0.82649636]
[1749255377240,0.95979905,2460.4,2460.3,0.01422636]
[1749255377436,0.95979905,2460.4,2460.3,0.82649636]
[1749255379537,2.24771461,2460.4,2460.3,0.82649636]
[1749255379738,0.95979905,2460.4,2460.3,0.82649636]
[1749255379932,0.95979905,2460.4,2460.3,2.16029636]
[1749255380543,0.39039905,2460.4,2460.3,2.16029636]
[1749255380739,9.0997,2460.6,2460.5,0.81221]
[1749255381045,8.3008,2460.6,2460.5,0.81221]
[1749255381341,3.2078,2461.4,2460.5,5.0]
[1749255381644,1.289527,2461.3,2461.1,0.812]
[1749255381832,3.2078,2461.4,2461.2,7.517]
[1749255381833,4.02581905,2461.4,2461.2,7.517]
[1749255382033,1.29017105,2461.3,2461.2,7.517]
[1749255382736,1.29017105,2461.3,2461.2,7.53122636]
[1749255383444,1.29017105,2461.3,2461.2,8.34320636]
[1749255384040,1.29017105,2461.3,2461.2,0.82620636]
[1749255384246,0.81204,2461.1,2460.7,7.517]
[1749255384434,3.2078,2460.9,2460.8,0.81211]
[1749255384635,3.2078,2460.9,2460.7,7.517]
[1749255384636,4.49797105,2460.9,2460.2,27.245]
[1749255384839,3.2078,2460.3,2460.2,28.05731]
[1749255385138,3.2078,2460.3,2460.2,34.20291]
[1749255385339,4.5007621,2460.3,2460.2,24.571]
[1749255385542,4.5007621,2460.3,2460.2,32.90031]
[1749255386343,5.3130321,2460.3,2460.2,32.088]
[1749255387544,4.5007621,2460.3,2460.2,32.90031]
[1749255387751,4.5007621,2460.3,2460.1,0.81232]
[1749255387948,1.2929621,2460.2,2460.1,8.33034]
[1749255388843,3.2078,2460.6,2460.1,7.518]
[1749255389049,1.29751095,2460.5,2460.4,0.81224]
[1749255390352,1.29751095,2460.5,2460.4,5.81224]
[1749255390649,6.41075301,2461.3,2461.2,0.81198]
[1749255390956,3.2078,2461.3,2461.2,8.32998]
[1749255391253,3.2078,2461.3,2461.2,7.518]
[1749255391545,3.2078,2461.3,2461.2,8.34425383]
[1749255391854,3.2078,2461.3,2461.2,8.35852766]
[1749255392751,3.2078,2461.3,2461.2,7.54654766]
[1749255392950,3.2078,2461.3,2461.2,8.35852766]
[1749255393150,3.2078,2461.3,2461.2,7.54654766]
[1749255393352,3.2078,2461.3,2461.2,8.35852766]
[1749255393953,8.2078,2461.3,2461.2,0.02854766]
[1749255394255,12.69575301,2461.3,2461.2,0.02854766]
[1749255394457,10.30474,2461.3,2461.2,0.02854766]
[1749255394759,10.30474,2461.3,2460.6,0.81216]
[1749255394760,10.1855,2461.3,2460.6,0.81216]
[1749255394961,3.2078,2460.9,2460.5,7.27]
[1749255395151,3.2078,2460.9,2460.3,3.2078]
[1749255395356,3.2078,2460.9,2460.4,8.6379]
[1749255395556,3.2078,2460.9,2460.6,0.81214]
[1749255396156,4.5153,2460.9,2460.6,0.81214]
[1749255396358,4.5153,2460.9,2460.2,2.03071]
[1749255396359,4.5153,2460.9,2460.1,1.2941]
[1749255396555,4.5153,2460.9,2460.6,0.81215]
[1749255396761,4.5153,2460.9,2460.7,0.81212]
[1749255396955,3.2078,2460.9,2460.7,0.81213]
[1749255397252,3.2078,2460.9,2460.8,0.81211]
[1749255397656,3.2078,2460.9,2460.3,3.39859]
[1749255397856,3.2078,2460.9,2460.8,0.81211]
[1749255398354,3.2078,2460.9,2460.6,0.81215]
[1749255398555,3.2078,2460.9,2460.3,1.3679]
[1749255398754,3.2078,2460.6,2460.3,1.3679]
[1749255398948,3.2078,2460.6,2460.5,0.81221]
[1749255399557,3.2078,2460.6,2460.4,0.81222]
[1749255399760,3.2078,2460.6,2460.5,0.81221]
[1749255399965,3.2078,2460.6,2460.2,7.27]
[1749255400264,0.81235,2460.1,2459.9,0.00609905]
[1749255400460,4.4765,2460.0,2459.9,0.00609905]
[1749255400864,3.2078,2460.0,2459.9,0.81849905]
[1749255401161,3.2078,2460.0,2459.9,0.00609905]
[1749255402158,3.2078,2460.0,2459.9,0.81849905]
[1749255402564,4.45582561,2460.0,2459.9,2.19759905]
[1749255402760,1.24802561,2460.0,2459.9,5.40539905]
[1749255402966,1.24802561,2460.0,2459.9,10.40539905]
[1749255403164,0.00609905,2460.2,2459.9,8.65619905]
[1749255403465,3.2078,2460.0,2458.7,3.2078]
[1749255403659,3.2078,2459.5,2458.9,1.3791]
[1749255403962,1.24828355,2459.4,2459.0,7.271]
[1749255404166,3.2078,2459.5,2459.0,7.271]
[1749255404167,1.24828355,2459.3,2459.2,1.3791]
[1749255404368,1.24828355,2459.3,2459.0,0.00609905]
[1749255404667,4.45608355,2459.2,2459.0,0.81878905]
[1749255404867,4.45608355,2459.2,2459.1,1.44219001]
[1749255405261,5.26872355,2459.2,2459.1,0.16059001]
[1749255406260,10.26872355,2459.2,2459.1,0.16059001]
[1749255406468,5.26872355,2459.2,2459.1,0.16059001]
[1749255406965,4.45608355,2459.2,2459.1,0.16059001]
[1749255407366,5.26872355,2459.2,2459.1,0.16059001]
[1749255407661,6.66962355,2459.2,2459.1,0.16059001]
[1749255407964,5.85698355,2459.2,2459.1,0.16059001]
[1749255408165,6.66962355,2459.2,2459.1,0.16059001]
[1749255410265,11.55868355,2459.2,2458.6,0.81282]
[1749255410462,11.55868355,2459.2,2458.6,0.81283]
[1749255410463,3.2078,2458.7,2458.6,0.81283]
[1749255410667,3.2078,2459.1,2459.0,0.8127]
[1749255410869,0.2379,2459.3,2458.6,9.30501]
[1749255411067,0.2379,2459.3,2458.9,0.81272]
[1749255411262,0.2379,2459.3,2458.7,0.6493]
[1749255411263,0.24399905,2459.3,2458.7,0.6493]
[1749255411461,0.24399905,2459.3,2458.8,0.6767]
[1749255411665,0.24399905,2459.3,2459.0,0.81268]
[1749255411870,0.81264,2459.2,2459.0,7.273]
[1749255412070,4.02048,2459.1,2458.7,7.9223]
[1749255412268,3.2078,2458.8,2458.7,8.73509]
[1749255412958,3.2078,2458.8,2458.7,7.9223]
[1749255413162,3.2078,2458.8,2458.7,8.7351]
[1749255413367,3.2078,2458.8,2458.7,7.9223]
[1749255413570,3.2078,2458.8,2458.7,8.7351]
[1749255414171,3.2078,2459.1,2458.9,0.81273]
[1749255414367,3.2078,2459.1,2459.0,0.8127]
[1749255414870,3.2078,2459.1,2459.0,5.8127]
[1749255415067,0.24399905,2459.3,2459.2,0.81264]
[1749255415470,0.24399905,2459.3,2459.2,13.08664]
[1749255417261,3.2078,2459.7,2459.6,0.81251]
[1749255418173,3.2078,2459.7,2459.4,0.00609905]
[1749255418372,0.00609905,2459.9,2459.8,0.81244]
[1749255418563,0.00609905,2459.9,2459.8,8.08644]
[1749255419671,0.00609905,2459.9,2459.8,13.08644]
[1749255420069,3.21389905,2459.9,2459.4,0.00609905]
[1749255420269,3.2078,2459.5,2459.4,0.00609905]
[1749255421271,3.2078,2459.5,2459.4,0.81866905]
[1749255421477,3.2078,2459.5,2459.4,0.00609905]
[1749255421773,3.2078,2459.5,2459.2,8.08662]
[1749255421774,9.42749264,2459.5,2458.1,3.2078]
[1749255422073,4.5077,2459.4,2458.8,3.2078]
[1749255422271,5.32029,2459.4,2459.0,0.8127]
[1749255422782,3.2078,2459.4,2459.0,0.81269]
[1749255423272,0.7996,2459.3,2459.1,0.81266]
[1749255423474,0.7996,2459.3,2459.2,0.81264]
[1749255423877,0.7996,2459.3,2459.0,1.3003]
[1749255424079,0.7996,2459.3,2458.9,0.81272]
[1749255424080,3.2078,2459.1,2458.8,0.81276]
[1749255424388,3.2078,2459.1,2458.9,7.089]
[1749255425470,3.2078,2459.1,2458.2,3.2078]
[1749255425673,3.2078,2458.7,2458.6,0.81284]
[1749255425872,3.2078,2458.7,2458.6,7.90184]
[1749255426073,3.2078,2459.0,2458.6,7.089]
[1749255426571,3.2078,2459.0,2458.9,0.81274]
[1749255426882,3.2078,2459.0,2458.7,1.3647]
[1749255427082,3.2078,2459.0,2458.8,7.089]
[1749255427379,3.2078,2459.0,2458.9,0.81274]
[1749255427571,3.2078,2459.0,2458.8,7.089]
[1749255428078,3.7759,2459.0,2458.8,7.089]
[1749255428273,3.7759,2459.0,2458.8,7.90174]
[1749255428678,3.7759,2459.0,2458.3,7.7473]
[1749255428980,3.7759,2459.0,2458.3,8.56022]
[1749255428981,4.02062,2458.7,2458.3,8.56022]
[1749255429375,3.2078,2458.7,2458.4,0.8129]
[1749255429576,3.2078,2458.7,2458.4,0.81288]
[1749255429779,4.02061,2458.7,2458.3,7.7473]
[1749255429968,3.2078,2458.7,2458.3,0.6583]
[1749255430477,4.5603,2458.7,2458.5,0.81286]
[1749255430873,5.37313,2458.7,2458.3,2.75222]
[1749255431179,4.5603,2458.7,2458.4,0.81288]
[1749255431380,4.5603,2458.7,2458.5,0.81286]
[1749255431578,4.5603,2458.7,2458.3,1.9393]
[1749255431775,3.2078,2458.4,2458.3,2.75223]
[1749255432181,0.00609905,2458.6,2458.5,0.81287]
[1749255432679,0.00609905,2458.6,2458.5,7.90287]
[1749255433071,9.05e-06,2458.6,2458.5,16.11067]
[1749255433779,9.05e-06,2458.6,2458.5,0.81287]
[1749255434378,9.05e-06,2458.6,2458.5,2.14127]
[1749255434579,9.05e-06,2458.6,2458.5,9.23127]
[1749255435384,9.05e-06,2458.6,2458.5,12.43907]
[1749255435582,9.05e-06,2458.6,2458.5,17.43907]
[1749255436086,9.05e-06,2458.6,2458.5,12.43907]
[1749255436286,9.05e-06,2458.6,2458.5,17.43907]
[1749255438684,1.2357,2458.9,2458.5,17.43907]
[1749255438685,9.05e-06,2458.9,2458.8,0.81277]
[1749255438979,3.2078,2459.6,2459.5,0.81254]
[1749255439179,3.8907,2459.9,2459.8,0.81244]
[1749255439379,3.8907,2459.9,2459.2,0.81261]
[1749255439578,5.23906829,2459.8,2459.3,0.00609905]
[1749255439782,4.02037,2459.4,2459.3,0.00609905]
[1749255439984,4.43351924,2459.4,2459.3,0.00609905]
[1749255440184,0.67919905,2459.8,2459.3,7.09609905]
[1749255440384,0.67919905,2459.8,2459.4,0.81256]
[1749255440585,4.02032,2459.6,2459.4,7.09]
[1749255440788,3.2078,2459.6,2459.4,7.09]
[1749255440989,1.3093,2459.5,2459.4,0.81256]
[1749255441489,0.81257,2459.4,2459.3,0.00609905]
[1749255441787,2.03880819,2459.4,2459.3,0.00609905]
[1749255441993,8.34810819,2459.4,2459.3,0.00609905]
[1749255442489,8.34810819,2459.4,2459.0,0.8127]
[1749255442490,0.81265,2459.2,2459.0,0.8127]
[1749255442681,5.1704,2459.1,2458.5,2.03214]
[1749255442884,3.2078,2458.8,2458.7,0.8128]
[1749255443492,0.81281,2458.7,2458.5,0.81285]
[1749255443695,1.3093,2458.6,2458.5,0.81285]
[1749255444193,3.2078,2458.8,2458.3,7.089]
[1749255444384,4.5114,2458.8,2458.3,7.089]
[1749255444792,3.2078,2458.5,2458.4,0.81287]
[1749255446291,3.2078,2458.8,2458.7,0.8128]
[1749255446593,4.5114,2458.8,2458.7,0.8128]
[1749255447397,5.73660315,2458.8,2458.7,0.8128]
[1749255447596,5.736601,2458.8,2458.7,0.8128]
[1749255447896,5.73656833,2458.8,2458.7,0.8128]
[1749255448098,4.5114,2458.8,2458.6,0.81281]
[1749255448398,5.32417,2458.8,2458.5,0.81285]
[1749255448695,5.32417,2458.8,2458.4,0.81287]
[1749255448696,1.22543573,2458.7,2458.4,0.81287]
[1749255448889,0.81284,2458.6,2458.4,0.81287]
[1749255449195,1.2708,2458.7,2458.1,1.2754]
[1749255449497,1.22672887,2458.6,2458.5,0.81285]
[1749255449698,4.43452887,2458.6,2458.5,0.81285]
[1749255450396,3.2078,2458.6,2458.5,0.81285]
[1749255450592,4.82035,2458.9,2458.7,0.81279]
[1749255450791,1.22654283,2458.8,2458.7,0.81279]
[1749255451501,4.0076,2458.9,2458.8,0.81277]
[1749255451899,3.2078,2459.5,2459.4,0.81257]
[1749255453395,0.00609905,2459.8,2459.7,0.81247]
[1749255454696,0.81247,2459.7,2459.4,0.81256]
[1749255454896,1.33269905,2459.8,2459.2,6.846]
[1749255455198,0.00609905,2459.8,2459.7,0.81247]
[1749255455607,0.00609905,2459.8,2459.7,7.65847]
[1749255456805,0.00609905,2459.8,2459.5,6.846]
[1749255457104,0.00609905,2459.8,2459.7,0.81247]
[1749255458799,8.21389905,2459.8,2459.2,3.2078]
[1749255459110,4.02035,2459.5,2459.3,0.81258]
[1749255459412,1.343,2459.4,2459.3,0.81258]
[1749255459597,4.02035,2459.5,2459.0,6.846]
[1749255459598,3.2078,2459.5,2459.4,0.81257]
[1749255459795,3.21389905,2459.8,2459.6,0.8125]
[1749255460002,3.21389905,2459.8,2459.6,0.81249]
[1749255460299,3.21389905,2459.8,2459.7,0.81247]
[1749255460798,3.21389905,2459.8,2459.6,0.81248]
[1749255460994,3.91619905,2459.8,2459.6,0.81248]
[1749255461204,4.72864905,2459.8,2459.7,0.81247]
[1749255461399,4.72864905,2459.8,2459.4,6.846]
[1749255461600,3.91619905,2459.8,2459.7,0.81247]
[1749255461802,0.00609905,2459.8,2459.7,0.81247]
[1749255464007,9.05e-06,2459.8,2459.7,0.81247]
[1749255468606,9.05e-06,2459.8,2459.7,7.65647]
[1749255471514,9.05e-06,2459.8,2459.7,7.40247]
[1749255471710,9.05e-06,2459.8,2459.7,0.81247]
[1749255471912,3.20780905,2459.8,2459.5,0.00609905]
[1749255472214,0.8125,2459.6,2459.5,7.40861905]
[1749255472519,2.10189,2459.7,2459.6,0.8125]
[1749255473017,0.81249,2459.7,2459.6,0.8125]
[1749255473619,1.2894,2459.7,2459.6,0.8125]
[1749255473817,3.20780905,2459.8,2459.7,0.81247]
[1749255474710,5.33374905,2459.8,2459.7,0.81247]
[1749255474911,4.52130905,2459.8,2459.7,0.81247]
[1749255475820,3.20780905,2459.8,2459.7,0.81247]
[1749255476518,9.05e-06,2459.8,2459.7,0.81247]
[1749255479724,9.05e-06,2459.8,2459.5,0.00609905]
[1749255479725,0.81251,2459.6,2459.5,0.00609905]
[1749255480121,7.05171229,2459.6,2459.5,0.00609905]
[1749255480323,0.81273,2459.0,2458.8,0.81277]
[1749255480622,0.81274,2458.9,2458.8,0.81277]
[1749255480816,0.81273,2459.0,2458.9,0.81274]
[1749255481023,0.81274,2458.9,2458.8,0.81275]
[1749255481324,1.3655,2459.0,2458.6,6.59]
[1749255481526,0.81281,2458.7,2458.6,6.59]
[1749255482023,2.17831,2458.7,2458.6,6.59]
[1749255482224,2.17831,2458.7,2458.3,7.40393]
[1749255482225,1.3655,2458.7,2458.3,7.40393]
[1749255482723,0.81289,2458.5,2458.4,0.81291]
[1749255482922,1.3655,2458.7,2458.4,0.81291]
[1749255483125,0.81296,2458.3,2458.1,0.81299]
[1749255483325,0.81296,2458.3,2458.2,0.81297]
[1749255483519,0.81901905,2458.4,2458.3,0.81295]
[1749255483727,0.00609905,2458.4,2458.0,6.591]
[1749255483928,0.81302,2458.1,2457.9,0.81306]
[1749255484117,4.0208,2458.2,2457.8,9.7988]
[1749255484324,0.81303,2458.1,2457.9,0.81306]
[1749255484629,3.2078,2458.2,2458.0,0.81305]
[1749255484630,5.3639,2458.2,2458.0,0.81305]
[1749255484826,4.5509,2458.2,2458.1,0.81301]
[1749255485025,3.2078,2458.2,2457.8,3.2078]
[1749255485326,4.0208,2458.2,2457.9,0.81305]
[1749255485531,0.81301,2458.1,2457.9,0.81306]
[1749255485830,0.81304,2458.1,2457.9,0.81306]
[1749255486425,5.36391,2458.2,2458.0,0.81305]
[1749255486727,5.36391,2458.2,2457.8,6.592]
[1749255486728,0.00609905,2458.4,2458.3,0.81295]
[1749255487130,0.81301,2458.2,2458.0,0.81303]
[1749255487628,0.81303,2458.1,2457.9,3.2078]
[1749255487826,0.81303,2458.1,2458.0,0.81305]
[1749255488026,0.813,2458.2,2458.0,0.81305]
[1749255488332,0.81301,2458.1,2457.9,4.02086]
[1749255488534,2.1011,2458.2,2458.0,0.81305]
[1749255488827,0.81301,2458.1,2457.9,4.02086]
[1749255489132,0.81301,2458.1,2458.0,0.81305]
[1749255489329,0.81305,2458.0,2457.9,4.02086]
[1749255489731,0.81302,2458.1,2458.0,0.81304]
[1749255489931,0.81304,2458.0,2457.9,4.02086]
[1749255490629,1.2881,2458.2,2457.8,6.593]
[1749255490630,0.81304,2458.1,2457.8,6.593]
[1749255490827,0.81299,2458.2,2457.8,6.593]
[1749255491033,0.81299,2458.2,2458.1,0.81301]
[1749255491330,3.9106,2458.3,2458.0,0.81302]
[1749255491636,0.81301,2458.1,2458.0,0.81302]
[1749255491828,0.81305,2458.0,2457.9,0.81306]
[1749255492032,0.81302,2458.1,2458.0,0.81303]
[1749255492433,5.3065,2458.3,2457.9,7.16805]
[1749255492835,0.81303,2458.1,2458.0,0.81304]
[1749255493038,5.3065,2458.3,2457.9,7.16806]
[1749255493330,0.81304,2458.0,2457.9,7.16805]
[1749255493536,5.3065,2458.3,2458.0,0.81304]
[1749255493738,5.3065,2458.3,2457.9,6.355]
[1749255494036,0.81303,2458.1,2458.0,0.81301]
[1749255494337,6.11946,2458.3,2458.2,0.81298]
[1749255494532,0.81299,2458.2,2458.1,0.813]
[1749255494727,0.81299,2458.2,2457.7,2.03283]
[1749255494933,0.81308,2457.9,2457.8,7.16908]
[1749255495228,1.381,2458.1,2457.8,6.356]
[1749255495430,0.813,2458.2,2458.1,0.813]
[1749255495830,3.9106,2458.3,2458.1,0.813]
[1749255496232,5.2002,2458.3,2458.1,0.813]
[1749255496438,0.81298,2458.2,2458.0,0.81302]
[1749255496733,6.01317,2458.3,2458.2,0.81298]
[1749255497035,6.01314,2458.3,2458.2,0.81298]
[1749255497235,5.2002,2458.3,2457.7,2.03283]
[1749255497436,0.81302,2458.1,2458.0,0.81302]
[1749255497632,0.813,2458.2,2458.0,0.81302]
[1749255497836,0.81301,2458.1,2458.0,0.81302]
[1749255498540,2.1026,2458.2,2458.1,0.81301]
[1749255498936,0.81302,2458.1,2458.0,0.81302]
[1749255499734,4.72356,2458.3,2458.2,0.81298]
[1749255501539,4.02076,2458.3,2458.2,0.81298]
[1749255501735,0.00609905,2458.4,2458.3,0.81294]
[1749255502039,0.81900905,2458.4,2458.3,0.81294]
[1749255502440,0.81900905,2458.4,2458.0,4.05569]
[1749255502441,0.00609905,2458.4,2458.0,0.6915]
[1749255502645,4.02077,2458.3,2458.1,0.81298]
[1749255503338,4.02077,2458.3,2458.0,0.6915]
[1749255503642,4.02075,2458.3,2458.0,0.6915]
[1749255503841,4.02075,2458.3,2458.0,0.81303]
[1749255503842,3.2078,2458.3,2458.0,0.81303]
[1749255504048,1.402,2458.2,2458.0,0.81303]
[1749255504340,1.402,2458.2,2457.9,0.81306]
[1749255504542,0.81303,2458.1,2457.9,0.81306]
[1749255504940,0.81303,2458.1,2458.0,0.81304]
[1749255505137,1.402,2458.2,2458.1,0.81301]
[1749255505335,3.2078,2458.3,2458.2,0.81298]
[1749255505742,9.05e-06,2458.4,2458.3,0.81294]
[1749255505944,9.05e-06,2458.4,2458.3,4.68064]
[1749255506138,9.05e-06,2458.4,2458.3,10.97294]
[1749255506443,9.05e-06,2458.4,2458.3,17.32894]
[1749255508539,3.2078,2459.3,2459.2,0.81265]
[1749255508745,4.4678611,2459.3,2459.2,0.81265]
[1749255508939,4.4678611,2459.3,2459.0,6.356]
[1749255509242,3.2078,2459.3,2459.2,0.81265]
[1749255509439,4.5807,2459.7,2459.6,0.81251]
[1749255509639,4.46754339,2459.7,2459.6,0.81251]
[1749255510037,1.25974339,2459.7,2459.6,0.81251]
[1749255510341,0.00609905,2459.9,2459.8,0.81245]
[1749255510748,0.00609905,2459.9,2459.8,7.16845]
[1749255511143,3.2078,2460.5,2460.4,0.81225]
[1749255511344,4.46798863,2460.5,2460.4,0.81225]
[1749255511751,3.2078,2460.5,2460.4,0.81225]
[1749255512247,0.00609905,2460.7,2460.6,0.81218]
[1749255512454,0.00609905,2460.7,2460.6,7.16718]
[1749255512749,9.05e-06,2460.7,2460.6,12.16718]
[1749255513353,3.2078,2461.7,2460.8,2.0303]
[1749255513648,3.2078,2462.0,2461.2,2.02993]
[1749255513850,3.2078,2462.0,2461.3,8.1243]
[1749255514240,3.2078,2462.0,2461.4,0.00609905]
[1749255514241,0.00609905,2461.9,2461.4,0.00609905]
[1749255514450,3.2078,2461.7,2461.5,0.81187]
[1749255514649,4.01964,2461.7,2461.4,0.00609905]
[1749255514948,3.2078,2461.7,2461.5,0.81187]
[1749255515450,0.00609905,2461.9,2461.4,0.00609905]
[1749255515749,0.00609905,2461.9,2461.5,3.2078]
[1749255516049,0.00609905,2461.9,2461.8,0.81179]
[1749255516644,0.00609905,2461.9,2461.6,7.4273]
[1749255516850,0.81786905,2461.9,2461.6,6.93385]
[1749255517249,0.81786905,2461.9,2461.4,0.00609905]
[1749255517250,3.2078,2461.7,2461.4,0.00609905]
[1749255517451,4.01964,2461.7,2461.4,6.12609905]
[1749255517652,3.2078,2461.7,2461.4,6.12609905]
[1749255517851,3.2078,2461.7,2461.6,0.81185]
[1749255519248,3.2078,2461.7,2461.5,0.81186]
[1749255519750,3.2078,2461.7,2461.6,0.81185]
[1749255520053,4.01962,2461.7,2461.5,0.81187]
[1749255520256,3.2078,2461.7,2461.5,0.81187]
[1749255520557,4.01962,2461.7,2461.5,0.81187]
[1749255520757,4.01962,2461.7,2461.6,0.81185]
[1749255521060,4.01962,2461.7,2461.5,6.93087]
[1749255521562,4.01965,2461.7,2461.5,6.93087]
[1749255521745,0.81189,2461.5,2461.4,0.00609905]
[1749255522554,0.81189,2461.5,2461.4,0.81801905]
[1749255523051,0.81189,2461.5,2461.4,0.00609905]
[1749255523259,0.81207,2461.0,2460.8,0.81209]
[1749255523457,3.2078,2461.1,2461.0,0.81205]